fUST/lending_fUST_20240715
["ID","MTS","AMOUNT","RATE_DAILY","PERIOD"]
[332142566,1720987846195,-500.0,0.00024931,2]
[332142568,1720987846206,-500.0,0.00024931,2]
[332142570,1720987846215,-500.0,0.00024931,2]
[332142572,1720987846224,-500.0,0.00024931,2]
[332142574,1720987846234,-500.0,0.00024931,2]
[332142576,1720987846245,-500.0,0.00024931,2]
[332142578,1720987846254,-8093.08,0.00024931,2]
[332142581,1720987846264,-500.0,0.00024931,2]
[332142583,1720987846274,-500.0,0.00024931,2]
[332142585,1720987846284,-500.0,0.00024931,2]
[332142587,1720987846294,-500.0,0.00024931,2]
[332142589,1720987846303,-500.0,0.00024931,2]
[332142591,1720987846313,-502.99493128,0.00024931,2]
[332142593,1720987846323,-500.0,0.00024931,2]
[332142595,1720987846332,-500.0,0.00024931,2]
[332142597,1720987846342,-500.0,0.00024931,2]
[332142599,1720987846352,-500.0,0.00024931,2]
[332142600,1720987846361,-500.0,0.00024931,2]
[332142601,1720987846371,-500.0,0.00024931,2]
[332142603,1720987846381,-521.75,0.00024931,2]
[332142605,1720987846391,-500.0,0.00024931,2]
[332142607,1720987846400,-500.0,0.00024931,2]
[332142609,1720987846410,-500.0,0.00024931,2]
[332142611,1720987846419,-500.0,0.00024931,2]
[332142613,1720987846429,-500.0,0.00024931,2]
[332142615,1720987846439,-500.0,0.00024931,2]
[332142617,1720987846449,-500.0,0.00024931,2]
[332142619,1720987846460,-500.0,0.00024931,2]
[332142622,1720987846470,-500.0,0.00024931,2]
[332142624,1720987846479,-500.0,0.00024931,2]
[332142626,1720987846488,-500.0,0.00024931,2]
[332142637,1720987846584,-500.0,0.00024931,2]
[332142638,1720987846593,-500.0,0.00024931,2]
[332142639,1720987846602,-500.0,0.00024931,2]
[332142640,1720987846611,-500.0,0.00024931,2]
[332142641,1720987846620,-500.0,0.00024931,2]
[332142642,1720987846629,-500.0,0.00024931,2]
[332142643,1720987846638,-500.0,0.00024931,2]
[332142644,1720987846647,-500.0,0.00024931,2]
[332142645,1720987846661,-500.0,0.00024931,2]
[332142646,1720987846670,-500.0,0.00024931,2]
[332142647,1720987846678,-500.0,0.00024931,2]
[332142648,1720987846688,-500.0,0.00024931,2]
[332142649,1720987846697,-500.0,0.00024931,2]
[332142650,1720987846706,-524.69258768,0.00024931,2]
[332142651,1720987846715,-500.0,0.00024931,2]
[332142652,1720987846725,-500.0,0.00024931,2]
[332142653,1720987846734,-500.0,0.00024931,2]
[332142654,1720987846744,-500.0,0.00024931,2]
[332142655,1720987846753,-500.0,0.00024931,2]
[332142656,1720987846766,-1427.75,0.00024931,2]
[332142657,1720987846775,-500.0,0.00024931,2]
[332142658,1720987846784,-500.0,0.00024931,2]
[332142659,1720987846794,-500.0,0.00024931,2]
[332142660,1720987846804,-500.0,0.00024931,2]
[332142661,1720987846813,-500.0,0.00024931,2]
[332142662,1720987846823,-500.0,0.00024931,2]
[332142663,1720987846832,-500.0,0.00024931,2]
[332142664,1720987846841,-500.0,0.00024931,2]
[332142665,1720987846850,-500.0,0.00024931,2]
[332142666,1720987846859,-500.0,0.00024931,2]
[332142667,1720987846868,-500.0,0.00024931,2]
[332142668,1720987846876,-500.0,0.00024931,2]
[332142669,1720987846885,-500.0,0.00024931,2]
[332142670,1720987846895,-581.95,0.00024931,2]
[332142671,1720987846904,-500.0,0.00024931,2]
[332142672,1720987846913,-500.0,0.00024931,2]
[332142673,1720987846922,-500.0,0.00024931,2]
[332142674,1720987846931,-523.05738343,0.00024931,2]
[332142675,1720987846940,-684.8,0.00024931,4]
[332142676,1720987846949,-868.09,0.00024931,2]
[332142677,1720987846962,-500.0,0.00024931,2]
[332142678,1720987846971,-500.0,0.00024931,2]
[332142679,1720987846982,-260.62534725,0.00025,2]
[332142680,1720987846991,-208.0741799,0.00025,2]
[332142681,1720987847000,-150.112233,0.00025,5]
[332142682,1720987847010,-150.112233,0.000251,8]
[332142683,1720987847019,-760.50560906,0.00025195,3]
[332142684,1720987847028,-150.112233,0.000252,8]
[332142685,1720987847037,-500.0,0.00025204,2]
[332142686,1720987847046,-500.0,0.00025204,2]
[332142687,1720987847056,-500.0,0.00025204,2]
[332142688,1720987847066,-9689.61621966,0.00025205,5]
[332142689,1720987847075,-329.5437991,0.00025205,2]
[332142690,1720987847220,-170.4562009,0.00025205,2]
[332142691,1720987847235,-500.0,0.00025205,2]
[332142692,1720987847249,-334.94730026,0.00025205,2]
[332142693,1720987847263,-568.67,0.00025205,2]
[332142694,1720987847279,-500.0,0.00025205,2]
[332142695,1720987847293,-199.5737917,0.00025205,2]
[332142696,1720987847307,-500.0,0.00025205,2]
[332142697,1720987847321,-531.41,0.00025205,2]
[332142698,1720987847335,-323.34792877,0.00025205,2]
[332142699,1720987847351,-180.81207123,0.00025205,2]
[332142700,1720987847362,-500.0,0.00025205,2]
[332142701,1720987847374,-49.45978468,0.00025205,2]
[332142710,1720987847618,-500.0,0.00024657,2]
[332142711,1720987847630,-450.54021532,0.00025205,2]
[332142712,1720987847644,-500.0,0.00025205,2]
[332142713,1720987847657,-475.90807851,0.00025205,2]
[332142714,1720987847669,-500.0,0.00025205,2]
[332142715,1720987847682,-500.0,0.00025205,2]
[332142716,1720987847694,-500.0,0.00025205,2]
[332142717,1720987847708,-500.0,0.00025205,2]
[332142718,1720987847722,-500.0,0.00025205,2]
[332142719,1720987847733,-500.0,0.00025205,2]
[332142720,1720987847745,-500.0,0.00025205,2]
[332142721,1720987847759,-712.24,0.00025205,2]
[332142722,1720987847772,-500.0,0.00025205,2]
[332142723,1720987847783,-347.74,0.00025205,2]
[332142724,1720987847795,-500.0,0.00025205,2]
[332142725,1720987847806,-500.0,0.00025205,2]
[332142726,1720987847817,-510.88,0.00025205,2]
[332142727,1720987847826,-500.0,0.00025205,2]
[332142728,1720987847836,-500.0,0.00025205,2]
[332142729,1720987847845,-500.0,0.00025205,2]
[332142730,1720987847855,-500.0,0.00025205,2]
[332142731,1720987847864,-500.0,0.00025205,2]
[332142732,1720987847873,-500.0,0.00025205,2]
[332142733,1720987847882,-500.0,0.00025205,2]
[332142734,1720987847891,-514.84577479,0.00025205,2]
[332142735,1720987847900,-500.0,0.00025205,2]
[332142736,1720987847909,-534.26869041,0.00025205,2]
[332142737,1720987847920,-500.0,0.00025205,2]
[332142738,1720987847931,-500.0,0.00025205,2]
[332142739,1720987847942,-500.0,0.00025205,2]
[332142740,1720987847953,-500.0,0.00025205,2]
[332142741,1720987847962,-500.0,0.00025205,2]
[332142742,1720987847971,-500.0,0.00025205,2]
[332142743,1720987847982,-500.0,0.00025205,2]
[332142744,1720987847991,-500.0,0.00025205,2]
[332142745,1720987848001,-500.0,0.00025205,2]
[332142746,1720987848137,-500.0,0.00025205,2]
[332142747,1720987848151,-500.0,0.00025205,2]
[332142748,1720987848160,-500.0,0.00025205,2]
[332142749,1720987848170,-500.0,0.00025205,2]
[332142750,1720987848180,-182.87,0.00025205,2]
[332142751,1720987848188,-500.0,0.00025205,2]
[332142752,1720987848198,-500.0,0.00025205,2]
[332142753,1720987848209,-500.0,0.00025205,2]
[332142754,1720987848219,-500.0,0.00025205,2]
[332142755,1720987848230,-500.0,0.00025205,2]
[332142756,1720987848239,-500.0,0.00025205,2]
[332142757,1720987848248,-500.0,0.00025205,2]
[332142758,1720987848258,-500.0,0.00025205,2]
[332142759,1720987848269,-500.0,0.00025205,2]
[332142760,1720987848278,-534.77,0.00025205,2]
[332142761,1720987848287,-3894.35,0.00025205,2]
[332142762,1720987848297,-500.0,0.00025205,2]
[332142763,1720987848306,-500.0,0.00025205,2]
[332142764,1720987848316,-441.10871046,0.00025205,2]
[332142765,1720987848327,-500.0,0.00025205,2]
[332142766,1720987848338,-500.0,0.00025205,2]
[332142767,1720987848347,-500.0,0.00025205,2]
[332142768,1720987848356,-500.0,0.00025205,2]
[332142769,1720987848365,-228.30208724,0.00025205,2]
[332142770,1720987848374,-510.67582826,0.00025205,2]
[332142771,1720987848383,-500.0,0.00025205,2]
[332142772,1720987848393,-500.0,0.00025205,2]
[332142773,1720987848402,-190.1290173,0.00025205,2]
[332142774,1720987848411,-500.0,0.00025205,2]
[332142775,1720987848420,-180.29,0.00025205,2]
[332142776,1720987848430,-500.0,0.00025205,2]
[332142777,1720987848439,-500.0,0.00025205,2]
[332142778,1720987848448,-500.0,0.00025205,2]
[332142779,1720987848458,-500.0,0.00025205,2]
[332142780,1720987848467,-500.0,0.00025205,2]
[332142781,1720987848476,-500.0,0.00025205,2]
[332142782,1720987848485,-500.0,0.00025205,2]
[332142783,1720987848495,-855.97,0.00025205,2]
[332142784,1720987848504,-500.0,0.00025205,2]
[332142785,1720987848513,-500.0,0.00025205,2]
[332142786,1720987848522,-500.0,0.00025205,2]
[332142787,1720987848532,-500.0,0.00025205,2]
[332142788,1720987848541,-425.75718704,0.00025205,2]
[332142789,1720987848550,-500.0,0.00025205,2]
[332142790,1720987848559,-500.0,0.00025205,2]
[332142791,1720987848569,-500.0,0.00025205,2]
[332142792,1720987848578,-500.0,0.00025205,2]
[332142793,1720987848588,-500.0,0.00025205,2]
[332142794,1720987848597,-500.0,0.00025205,2]
[332142795,1720987848606,-509.00051779,0.00025205,2]
[332142796,1720987848616,-254.80344226,0.00025205,2]
[332142797,1720987848625,-500.0,0.00025205,2]
[332142798,1720987848636,-500.0,0.00025205,2]
[332142799,1720987848646,-500.0,0.00025205,2]
[332142800,1720987848656,-500.0,0.00025205,2]
[332142801,1720987848666,-8093.08,0.00025205,2]
[332142802,1720987848675,-500.0,0.00025205,2]
[332142803,1720987848685,-500.0,0.00025205,2]
[332142804,1720987848694,-500.0,0.00025205,2]
[332142805,1720987848704,-500.0,0.00025205,2]
[332142806,1720987848713,-500.0,0.00025205,2]
[332142807,1720987848722,-500.0,0.00025205,2]
[332142808,1720987848731,-521.75,0.00025205,2]
[332142809,1720987848740,-500.0,0.00025205,2]
[332142810,1720987848749,-500.0,0.00025205,2]
[332142811,1720987848762,-500.0,0.00025205,2]
[332142812,1720987848772,-500.0,0.00025205,2]
[332142813,1720987848781,-500.0,0.00025205,2]
[332142814,1720987848791,-255.27094501,0.00025205,2]
[332142815,1720987848802,-500.0,0.00025205,2]
[332142816,1720987848812,-500.0,0.00025205,2]
[332142817,1720987848822,-573.82580001,0.00025205,2]
[332142818,1720987848832,-500.0,0.00025205,2]
[332142819,1720987848842,-461.34220818,0.00025205,2]
[332142820,1720987848852,-553.04602674,0.00025205,2]
[332142821,1720987848862,-500.0,0.00025205,2]
[332142822,1720987848871,-326.78,0.00025205,2]
[332142823,1720987848880,-500.0,0.00025205,2]
[332142824,1720987848890,-500.0,0.00025205,2]
[332142825,1720987848900,-500.0,0.00025205,2]
[332142826,1720987848909,-1427.75,0.00025205,2]
[332142827,1720987848918,-613.54290489,0.00025205,2]
[332142828,1720987848929,-500.0,0.00025205,2]
[332142829,1720987848940,-503.54420116,0.00025205,2]
[332142830,1720987848950,-643.37687141,0.00025205,2]
[332142831,1720987848961,-623.0,0.00025205,2]
[332142832,1720987848971,-500.0,0.00025205,2]
[332142833,1720987848980,-500.0,0.00025205,2]
[332142834,1720987848990,-323.23972023,0.00025205,2]
[332142835,1720987848999,-500.0,0.00025205,2]
[332142836,1720987849009,-500.0,0.00025205,2]
[332142837,1720987849018,-684.8,0.00025205,4]
[332142838,1720987849028,-868.09,0.00025205,2]
[332142839,1720987849038,-500.0,0.00025205,2]
[332142840,1720987849048,-500.0,0.00025205,2]
[332142841,1720987849057,-224.77,0.00025205,7]
[332142842,1720987849067,-151.0,0.00025205,7]
[332142843,1720987849076,-380.06899138,0.00025292,2]
[332142844,1720987849085,-380.06899138,0.00025298,2]
[332142845,1720987849095,-150.112233,0.000253,7]
[332142846,1720987849104,-150.112233,0.000253,10]
[332142847,1720987849114,-5292.88975486,0.00025327,2]
[332142848,1720987849123,-153.0,0.0002537,2]
[332142849,1720987849133,-150.0,0.00025385,2]
[332142850,1720987849142,-169.9,0.00025389,2]
[332142851,1720987849152,-150.112233,0.000254,7]
[332142852,1720987849161,-150.0,0.000254,2]
[332142853,1720987849172,-503.0,0.000254,2]
[332142854,1720987849181,-760.50560906,0.00025469,3]
[332142855,1720987849191,-326.83,0.00025479,2]
[332142856,1720987849200,-500.0,0.00025479,2]
[332142857,1720987849209,-531.41,0.00025479,2]
[332142858,1720987849219,-500.0,0.00025479,2]
[332142859,1720987849228,-500.0,0.00025479,2]
[332142860,1720987849239,-418.61,0.00025479,2]
[332142861,1720987849248,-425.67,0.00025479,2]
[332142862,1720987849258,-264.6499117,0.00025479,2]
[332142863,1720987849268,-500.0,0.00025479,2]
[332142864,1720987849277,-712.24,0.00025479,2]
[332142865,1720987849287,-500.0,0.00025479,2]
[332142866,1720987849296,-353.18,0.00025479,2]
[332142867,1720987849306,-611.7,0.00025479,2]
[332142868,1720987849315,-500.0,0.00025479,2]
[332142869,1720987849325,-500.0,0.00025479,2]
[332142870,1720987849335,-500.0,0.00025479,2]
[332142871,1720987849344,-500.0,0.00025479,2]
[332142872,1720987849353,-500.0,0.00025479,2]
[332142873,1720987849362,-500.0,0.00025479,2]
[332142874,1720987849371,-500.0,0.00025479,2]
[332142875,1720987849381,-500.0,0.00025479,2]
[332142876,1720987849391,-500.0,0.00025479,2]
[332142877,1720987849400,-500.0,0.00025479,2]
[332142878,1720987849410,-500.0,0.00025479,2]
[332142879,1720987849419,-3894.35,0.00025479,2]
[332142880,1720987849428,-500.0,0.00025479,2]
[332142881,1720987849437,-500.0,0.00025479,2]
[332142882,1720987849446,-500.0,0.00025479,2]
[332142883,1720987849455,-500.0,0.00025479,2]
[332142884,1720987849465,-308.03356158,0.00025479,2]
[332142885,1720987849475,-500.0,0.00025479,2]
[332142886,1720987849484,-500.0,0.00025479,2]
[332142887,1720987849493,-500.0,0.00025479,2]
[332142888,1720987849503,-151.0,0.00025479,7]
[332142889,1720987849512,-151.0,0.00025479,2]
[332142890,1720987849523,-500.0,0.00025479,2]
[332142891,1720987849534,-151.0,0.00025479,2]
[332142892,1720987849545,-215.25,0.00025479,2]
[332142893,1720987849555,-855.97,0.00025479,2]
[332142894,1720987849565,-500.0,0.00025479,2]
[332142895,1720987849574,-356.528508,0.00025479,7]
[332142896,1720987849583,-356.528508,0.00025479,7]
[332142897,1720987849592,-500.0,0.00025479,2]
[332142898,1720987849602,-154.766639,0.00025479,7]
[332142899,1720987849612,-151.0,0.00025479,7]
[332142900,1720987849620,-151.0,0.00025479,7]
[332142901,1720987849630,-500.0,0.00025479,2]
[332142902,1720987849639,-500.0,0.00025479,2]
[332142903,1720987849648,-500.0,0.00025479,2]
[332142904,1720987849658,-500.0,0.00025479,2]
[332142905,1720987849668,-500.0,0.00025479,2]
[332142906,1720987849677,-171.210485,0.00025479,7]
[332142907,1720987849686,-171.210485,0.00025479,7]
[332142908,1720987849696,-500.0,0.00025479,2]
[332142909,1720987849706,-500.0,0.00025479,2]
[332142910,1720987849715,-500.0,0.00025479,2]
[332142911,1720987849725,-421.129878,0.00025479,7]
[332142912,1720987849734,-421.129878,0.00025479,7]
[332142913,1720987849744,-8093.08,0.00025479,2]
[332142914,1720987849753,-504.75,0.00025479,2]
[332142915,1720987849766,-500.0,0.00025479,2]
[332142916,1720987849776,-187.198587,0.00025479,7]
[332142917,1720987849785,-500.0,0.00025479,2]
[332142918,1720987849795,-187.198587,0.00025479,7]
[332142919,1720987849804,-151.0,0.00025479,7]
[332142920,1720987849813,-645.20884031,0.00025479,2]
[332142921,1720987849822,-521.75,0.00025479,2]
[332142922,1720987849832,-500.0,0.00025479,2]
[332142923,1720987849842,-151.0,0.00025479,7]
[332142924,1720987849852,-500.0,0.00025479,2]
[332142925,1720987849861,-169.472028,0.00025479,7]
[332142926,1720987849870,-169.472028,0.00025479,7]
[332142927,1720987849880,-500.0,0.00025479,2]
[332142928,1720987849890,-500.0,0.00025479,2]
[332142929,1720987849899,-500.0,0.00025479,2]
[332142930,1720987849910,-1427.75,0.00025479,2]
[332142931,1720987849920,-500.0,0.00025479,2]
[332142932,1720987849931,-500.0,0.00025479,2]
[332142933,1720987849942,-500.0,0.00025479,2]
[332142934,1720987849952,-684.8,0.00025479,4]
[332142935,1720987849962,-868.09,0.00025479,2]
[332142936,1720987849971,-500.0,0.00025479,2]
[332142937,1720987849980,-760.50560906,0.00025489,3]
[332142938,1720987849989,-380.06899138,0.0002549,2]
[332142939,1720987849999,-5323.53926342,0.0002549,3]
[332142940,1720987850009,-500.0,0.00025499,2]
[332142941,1720987850018,-500.0,0.00025499,2]
[332142942,1720987850027,-500.0,0.00025499,2]
[332142943,1720987850037,-500.0,0.00025499,2]
[332142944,1720987850047,-500.0,0.00025499,2]
[332142945,1720987850056,-500.0,0.00025499,2]
[332142946,1720987850066,-500.0,0.00025499,2]
[332142947,1720987850075,-500.0,0.00025499,2]
[332142948,1720987850084,-373.92448428,0.00025499,2]
[332142949,1720987850093,-500.0,0.00025499,2]
[332142950,1720987850103,-500.0,0.00025499,2]
[332142951,1720987850113,-500.0,0.00025499,2]
[332142952,1720987850123,-500.0,0.00025499,2]
[332142953,1720987850132,-500.0,0.00025499,2]
[332142954,1720987850142,-508.2938569,0.00025499,2]
[332142955,1720987850151,-1798.99607655,0.000255,5]
[332142956,1720987850160,-91920.36196211,0.000255,2]
[332142957,1720987850169,-35120.22570798,0.000255,2]
[332142958,1720987850236,-500.0,0.00024657,2]
[332142959,1720987850246,-500.0,0.00024931,2]
[332142960,1720987850257,-500.0,0.00025205,2]
[332142961,1720987850267,-354.29784889,0.00025479,2]
[332142962,1720987850468,-500.0,0.00024657,2]
[332142963,1720987850477,-500.0,0.00024657,2]
[332142964,1720987850489,-500.0,0.00024657,2]
[332142965,1720987850498,-320.97098709,0.00024931,2]
[332142966,1720987850507,-608.7856859,0.00024931,2]
[332142967,1720987850518,-500.0,0.00024931,2]
[332142968,1720987850538,-145.70215111,0.00025479,2]
[332142969,1720987850550,-31588.34117591,0.000255,2]
[332142973,1720988691295,3992.43380953,0.00016255,2]
[332142974,1720988699931,160.15762601,0.00016255,2]
[332142975,1720988720324,235.31556196,0.00016255,4]
[332142987,1720988834113,-900.44480266,0.00018899,2]
[332142988,1720988834145,-553.34629998,0.00018899,2]
[332142990,1720988839109,-182.77484663,0.00018899,2]
[332142993,1720988845196,-732.07850449,0.00018899,2]
[332142994,1720988848098,-250.0,0.00018899,2]
[332142995,1720988849094,-208.08631229,0.00018899,2]
[332143009,1720988930769,656.7198082,0.00016255,2]
[332143015,1720988945768,656.7198082,0.00016255,2]
[332143016,1720988952090,-182.583281,0.000176,2]
[332143020,1720988962090,-156.18984732,0.00019165,2]
[332143021,1720988962116,-336.87208878,0.00019165,2]
[332143034,1720989029421,150.0,0.000189,2]
[332143053,1720989032004,-716.921131,0.00021096,2]
[332143054,1720989032013,-250.000004,0.00022248,2]
[332143055,1720989032022,-352.98086887,0.0002243,2]
[332143056,1720989032031,-193.98650744,0.0002323,2]
[332143057,1720989032041,-491.52773917,0.00023455,2]
[332143058,1720989032050,-156.33744284,0.00023968,2]
[332143059,1720989032059,-1117.82200866,0.00024557,2]
[332143060,1720989032068,-300.0,0.00024646,2]
[332143061,1720989032078,-1474.55185928,0.00024647,3]
[332143096,1720989038069,-47085.18270936,0.00024647,3]
[332143140,1720989040249,-41997.93366516,0.00024647,3]
[332143142,1720989040259,-637.07080345,0.00024656,2]
[332143144,1720989040270,-520.75123233,0.00024657,2]
[332143146,1720989040280,-500.0,0.00024657,2]
[332143148,1720989040290,-500.0,0.00024657,2]
[332143150,1720989040299,-500.0,0.00024657,2]
[332143152,1720989040310,-503.42071233,0.00024657,2]
[332143154,1720989040320,-500.0,0.00024657,2]
[332143156,1720989040329,-500.0,0.00024657,2]
[332143158,1720989040339,-500.0,0.00024657,2]
[332143160,1720989040348,-500.0,0.00024657,2]
[332143162,1720989040357,-169.12075887,0.00024657,2]
[332143164,1720989040368,-500.0,0.00024657,2]
[332143166,1720989040381,-500.0,0.00024657,2]
[332143168,1720989040390,-502.87580366,0.00024657,2]
[332143170,1720989040400,-500.0,0.00024657,2]
[332143172,1720989040410,-500.0,0.00024657,2]
[332143174,1720989040419,-500.0,0.00024657,2]
[332143176,1720989040430,-538.3915727,0.00024657,2]
[332143178,1720989040440,-500.0,0.00024657,2]
[332143180,1720989040449,-548.64790125,0.00024657,2]
[332143182,1720989040459,-500.0,0.00024657,2]
[332143184,1720989040468,-500.0,0.00024657,2]
[332143186,1720989040478,-500.0,0.00024657,2]
[332143187,1720989040489,-1500.0,0.00024657,2]
[332143189,1720989040499,-500.0,0.00024657,2]
[332143190,1720989040511,-500.0,0.00024657,2]
[332143191,1720989040520,-567.22,0.00024657,2]
[332143192,1720989040529,-500.0,0.00024657,2]
[332143193,1720989040538,-500.0,0.00024657,2]
[332143194,1720989040547,-500.0,0.00024657,2]
[332143195,1720989040556,-242.56428801,0.00024657,2]
[332143196,1720989040566,-500.0,0.00024657,2]
[332143197,1720989040575,-500.0,0.00024657,2]
[332143198,1720989040584,-500.86702552,0.00024657,2]
[332143199,1720989040594,-500.0,0.00024657,2]
[332143200,1720989040603,-500.0,0.00024657,2]
[332143201,1720989040613,-500.0,0.00024657,2]
[332143202,1720989040624,-500.0,0.00024657,2]
[332143203,1720989040633,-500.0,0.00024657,2]
[332143204,1720989040643,-510.16009445,0.00024657,2]
[332143205,1720989040652,-500.0,0.00024657,2]
[332143206,1720989040662,-500.0,0.00024657,2]
[332143207,1720989040671,-500.0,0.00024657,2]
[332143209,1720989040681,-518.24128802,0.00024657,2]
[332143211,1720989040691,-500.0,0.00024657,2]
[332143213,1720989040700,-500.0,0.00024657,2]
[332143215,1720989040710,-500.0,0.00024657,2]
[332143217,1720989040719,-500.0,0.00024657,2]
[332143219,1720989040728,-500.0,0.00024657,2]
[332143221,1720989040738,-500.0,0.00024657,2]
[332143223,1720989040750,-500.0,0.00024657,2]
[332143225,1720989040759,-500.0,0.00024657,2]
[332143227,1720989040769,-274.43205086,0.00024657,2]
[332143229,1720989040779,-500.0,0.00024657,2]
[332143231,1720989040789,-500.0,0.00024657,2]
[332143233,1720989040798,-500.0,0.00024657,2]
[332143235,1720989040808,-500.0,0.00024657,2]
[332143237,1720989040817,-401.77715922,0.00024657,2]
[332143239,1720989040826,-500.0,0.00024657,2]
[332143241,1720989040835,-550.68150547,0.00024657,2]
[332143243,1720989040845,-200.0,0.00024657,2]
[332143245,1720989040855,-507.5642997,0.00024657,2]
[332143247,1720989040865,-503.35804317,0.00024657,2]
[332143249,1720989040874,-500.0,0.00024657,2]
[332143251,1720989040884,-500.0,0.00024657,2]
[332143253,1720989040893,-500.0,0.00024657,2]
[332143255,1720989040903,-500.0,0.00024657,2]
[332143257,1720989040913,-153.47185625,0.00024657,2]
[332143259,1720989040923,-500.0,0.00024657,2]
[332143261,1720989040932,-500.0,0.00024657,2]
[332143263,1720989040942,-500.0,0.00024657,2]
[332143265,1720989040953,-500.0,0.00024657,2]
[332143277,1720989041055,-637.76546221,0.00024657,2]
[332143279,1720989041065,-714.15,0.00024657,2]
[332143281,1720989041074,-500.0,0.00024657,2]
[332143283,1720989041084,-500.0,0.00024657,2]
[332143285,1720989041093,-500.0,0.00024657,2]
[332143287,1720989041103,-500.0,0.00024657,2]
[332143289,1720989041112,-500.0,0.00024657,2]
[332143291,1720989041122,-500.0,0.00024657,2]
[332143293,1720989041131,-649.3688754,0.00024657,2]
[332143295,1720989041140,-500.0,0.00024657,2]
[332143297,1720989041150,-500.0,0.00024657,2]
[332143299,1720989041160,-500.0,0.00024657,2]
[332143301,1720989041169,-500.0,0.00024657,2]
[332143303,1720989041179,-500.0,0.00024657,2]
[332143305,1720989041188,-500.0,0.00024657,2]
[332143307,1720989041197,-500.0,0.00024657,2]
[332143309,1720989041206,-500.0,0.00024657,2]
[332143311,1720989041215,-505.55852352,0.00024657,2]
[332143313,1720989041225,-500.0,0.00024657,2]
[332143315,1720989041235,-500.0,0.00024657,2]
[332143317,1720989041244,-500.0,0.00024657,2]
[332143319,1720989041253,-301.76176108,0.00024657,2]
[332143320,1720989041262,-512.04936283,0.00024657,2]
[332143322,1720989041271,-500.0,0.00024657,2]
[332143324,1720989041281,-500.0,0.00024657,2]
[332143326,1720989041290,-532.86327662,0.00024657,2]
[332143328,1720989041300,-500.0,0.00024657,2]
[332143330,1720989041309,-500.0,0.00024657,2]
[332143332,1720989041318,-500.0,0.00024657,2]
[332143334,1720989041328,-500.0,0.00024657,2]
[332143336,1720989041337,-500.0,0.00024657,2]
[332143338,1720989041347,-500.0,0.00024657,2]
[332143340,1720989041357,-500.0,0.00024657,2]
[332143342,1720989041367,-331.69689783,0.00024657,2]
[332143344,1720989041378,-500.0,0.00024657,2]
[332143346,1720989041387,-500.0,0.00024657,2]
[332143348,1720989041397,-500.0,0.00024657,2]
[332143350,1720989041407,-200.0,0.00024657,7]
[332143352,1720989041416,-500.0,0.00024657,2]
[332143354,1720989041426,-500.0,0.00024657,2]
[332143356,1720989041435,-500.0,0.00024657,2]
[332143358,1720989041445,-500.0,0.00024657,2]
[332143360,1720989041457,-500.0,0.00024657,2]
[332143362,1720989041467,-500.0,0.00024657,2]
[332143364,1720989041477,-500.0,0.00024657,2]
[332143366,1720989041487,-500.0,0.00024657,2]